bitfinex/quotes_BTCUSD_20250825
["timestamp","ask_amount","ask_price","bid_price","bid_amount"]
[1756107989236,1.30533374,111990.0,111980.0,0.00508815]
[1756107989440,1.29906099,111990.0,111980.0,0.00508815]
[1756107989931,1.75651001,111990.0,111980.0,4.815e-05]
[1756107990170,6.54887464,111990.0,111980.0,4.815e-05]
[1756107990388,6.53490021,111990.0,111980.0,4.815e-05]
[1756107991285,6.5597319,111990.0,111980.0,4.815e-05]
[1756107991908,6.56764601,111990.0,111980.0,4.815e-05]
[1756107992987,6.56756601,111990.0,111980.0,4.815e-05]
[1756107993421,7.16497776,111990.0,111980.0,4.815e-05]
[1756107993866,6.56756601,111990.0,111980.0,4.815e-05]
[1756107994971,6.98639039,111990.0,111980.0,4.815e-05]
[1756107995197,7.03419551,111990.0,111980.0,4.815e-05]
[1756107995419,7.03425877,111990.0,111980.0,4.815e-05]
[1756107995640,7.00232233,111990.0,111980.0,4.815e-05]
[1756107996075,7.00232186,111990.0,111980.0,4.815e-05]
[1756107996299,7.00132186,111990.0,111980.0,4.815e-05]
[1756107996524,7.00032186,111990.0,111980.0,4.815e-05]
[1756107996948,7.00527186,111990.0,111980.0,4.815e-05]
[1756107997631,5.82643485,111990.0,111980.0,4.815e-05]
[1756107997854,6.95015672,111990.0,111980.0,4.815e-05]
[1756107998080,5.65728322,111990.0,111980.0,4.815e-05]
[1756107998283,6.95210672,111990.0,111980.0,4.815e-05]
[1756107998505,6.85210672,111990.0,111980.0,4.815e-05]
[1756107998724,6.95210672,111990.0,111980.0,4.815e-05]
[1756107999380,6.9043016,111990.0,111980.0,4.815e-05]
[1756108000253,6.79978183,111990.0,111980.0,4.815e-05]
[1756108001991,7.01450183,111990.0,111980.0,4.815e-05]
[1756108002668,7.01255183,111990.0,111980.0,4.815e-05]
[1756108003121,0.35744902,111980.0,111970.0,0.00210815]
[1756108003336,6.79131749,111980.0,111970.0,0.00415815]
[1756108003543,2.07012449,111980.0,111970.0,0.00415815]
[1756108003764,2.07428249,111980.0,111970.0,0.00415815]
[1756108004195,2.07628249,111980.0,111970.0,0.00415815]
[1756108004623,2.07828249,111980.0,111970.0,0.00415815]
[1756108004838,2.07828249,111980.0,111960.0,0.00045]
[1756108005062,1.43966825,111970.0,111960.0,0.00053607]
[1756108005299,1.43966825,111970.0,111960.0,0.00559607]
[1756108005300,1.57702312,111970.0,111960.0,0.00559607]
[1756108005549,1.58060412,111970.0,111960.0,0.00559607]
[1756108005765,0.3857792,111970.0,111960.0,0.00559607]
[1756108005981,1.59457995,111970.0,111960.0,0.00559607]
[1756108006204,1.61861367,111970.0,111960.0,0.00559607]
[1756108006885,1.61961367,111970.0,111960.0,0.00559607]
[1756108007103,1.59557995,111970.0,111960.0,0.00559607]
[1756108007314,1.59657995,111970.0,111960.0,0.00559607]
[1756108007737,1.63806269,111970.0,111960.0,0.00559607]
[1756108007951,1.64004269,111970.0,111960.0,0.00559607]
[1756108008165,0.78521919,111970.0,111960.0,0.00559607]
[1756108008378,1.36667369,111970.0,111960.0,0.00559607]
[1756108008604,1.80612544,111970.0,111960.0,0.00559607]
[1756108008814,1.96404544,111970.0,111960.0,0.00539795]
[1756108010399,1.99609354,111970.0,111960.0,0.00539795]
[1756108012846,1.99609354,111970.0,111960.0,0.00033795]
[1756108012847,6.71926654,111970.0,111960.0,0.00033795]
[1756108013070,6.74713823,111970.0,111960.0,0.00033795]
[1756108013294,6.74409823,111970.0,111960.0,0.00539795]
[1756108013528,0.35744902,111960.0,111940.0,0.0005]
[1756108013745,7.48494043,111960.0,111940.0,0.0005]
[1756108013966,0.45744902,111950.0,111940.0,0.0005]
[1756108014181,6.79130761,111950.0,111940.0,0.0005]
[1756108014399,6.79130761,111950.0,111930.0,0.00045]
[1756108014611,6.83299027,111940.0,111930.0,0.00053612]
[1756108014843,6.99183886,111940.0,111930.0,0.00053612]
[1756108015081,7.00375797,111940.0,111930.0,0.00053612]
[1756108015287,7.044779,111940.0,111920.0,0.0005]
[1756108015488,6.45833153,111930.0,111920.0,0.0005]
[1756108015699,1.96337076,111930.0,111920.0,0.0005]
[1756108015899,1.98820245,111930.0,111920.0,0.0005]
[1756108016108,2.08820245,111930.0,111920.0,0.0005]
[1756108016380,2.12025055,111930.0,111920.0,0.0005]
[1756108016589,2.02025055,111930.0,111920.0,0.0005]
[1756108016801,2.12025055,111930.0,111920.0,0.0005]
[1756108017010,1.65227252,111910.0,111900.0,0.00045]
[1756108017218,6.80109511,111910.0,111890.0,0.0004]
[1756108017389,6.6421662,111900.0,111890.0,0.0004]
[1756108017590,1.97345103,111900.0,111890.0,0.0004]
[1756108017807,6.60121803,111900.0,111880.0,5e-05]
[1756108017968,6.64610552,111890.0,111880.0,5e-05]
[1756108018170,6.86400064,111890.0,111880.0,5e-05]
[1756108018754,5.66930566,111890.0,111880.0,5e-05]
[1756108018967,6.86412916,111890.0,111880.0,5e-05]
[1756108019401,6.85788079,111890.0,111880.0,5e-05]
[1756108019790,6.90388386,111890.0,111880.0,5e-05]
[1756108020015,6.91787201,111890.0,111870.0,0.00301]
[1756108020214,6.58695027,111880.0,111860.0,0.00045]
[1756108020472,6.58695027,111880.0,111870.0,0.00506]
[1756108020473,0.61658574,111880.0,111870.0,0.00506]
[1756108020695,0.63568403,111880.0,111870.0,0.00506]
[1756108020936,0.77446574,111880.0,111870.0,0.00506]
[1756108021161,0.80958859,111880.0,111870.0,0.00706]
[1756108021379,0.80958859,111880.0,111870.0,0.00405]
[1756108021595,2.00243209,111880.0,111870.0,0.00706]
[1756108021817,2.16209674,111880.0,111870.0,0.00706]
[1756108022281,1.91734709,111880.0,111870.0,0.00706]
[1756108022507,7.94530184,111880.0,111860.0,0.00045]
[1756108022732,6.8073911,111870.0,111860.0,0.00045]
[1756108022943,6.73417924,111870.0,111860.0,0.00045]
[1756108023166,6.72104889,111870.0,111860.0,0.00045]
[1756108023380,6.79727914,111870.0,111860.0,0.00045]
[1756108023582,6.81380288,111870.0,111860.0,0.00045]
[1756108023799,6.89258181,111870.0,111860.0,0.00045]
[1756108024017,0.01744902,111830.0,111810.0,0.06048095]
[1756108024229,0.03707727,111830.0,111820.0,0.00205]
[1756108024445,0.19495727,111830.0,111820.0,0.00205]
[1756108024664,0.20221202,111830.0,111820.0,0.00205]
[1756108025285,0.20221202,111830.0,111820.0,0.00253214]
[1756108025487,0.79962377,111830.0,111820.0,0.00253214]
[1756108026176,0.79962377,111830.0,111820.0,0.00554214]
[1756108026846,0.79962377,111830.0,111820.0,0.01054214]
[1756108027064,0.8322522,111830.0,111820.0,0.01054214]
[1756108027727,1.01109508,111830.0,111820.0,0.01054214]
[1756108027940,0.8322522,111830.0,111820.0,0.01054214]
[1756108028355,1.05224912,111830.0,111820.0,0.01054214]
[1756108028577,0.87340624,111830.0,111820.0,0.01054214]
[1756108028994,1.05224912,111830.0,111820.0,0.01454214]
[1756108029806,1.39224912,111830.0,111820.0,0.01454214]
[1756108030349,2.23472126,111830.0,111820.0,0.00948214]
[1756108030772,1.63730951,111830.0,111820.0,0.00948214]
[1756108031191,1.63730951,111830.0,111820.0,0.00448214]
[1756108031407,1.62730366,111830.0,111820.0,0.00448214]
[1756108031615,0.19632389,111810.0,111800.0,0.00349]
[1756108031826,1.08092949,111810.0,111800.0,0.00609142]
[1756108032241,1.10782249,111810.0,111800.0,0.00609142]
[1756108033080,1.69422839,111810.0,111800.0,0.00809142]
[1756108033512,1.69422839,111810.0,111800.0,0.01009142]
[1756108034551,1.69422839,111810.0,111780.0,5e-05]
[1756108034552,0.55842592,111790.0,111780.0,5e-05]
[1756108034766,6.79414705,111790.0,111780.0,5e-05]
[1756108034979,0.57590696,111770.0,111750.0,0.00304]
[1756108035217,2.08071322,111770.0,111760.0,0.00217]
[1756108035617,2.08430022,111770.0,111760.0,0.00217]
[1756108035827,1.29845527,111770.0,111760.0,0.00217]
[1756108036032,1.29845527,111770.0,111760.0,0.00521]
[1756108036033,1.55224465,111770.0,111760.0,0.00521]
[1756108036440,1.57117775,111770.0,111760.0,5e-05]
[1756108036646,1.57117775,111770.0,111760.0,0.00019442]
[1756108036647,2.15758365,111770.0,111760.0,0.00019442]
[1756108037470,2.19824789,111770.0,111760.0,0.00019442]
[1756108038291,2.04132789,111770.0,111760.0,0.00019442]
[1756108038492,1.60791199,111770.0,111760.0,0.00535442]
[1756108038706,1.60991199,111770.0,111760.0,0.00231442]
[1756108038915,1.61284199,111770.0,111760.0,0.00019442]
[1756108039124,2.19924789,111770.0,111760.0,0.00019442]
[1756108042818,2.23876694,111770.0,111760.0,0.00019442]
[1756108043036,0.19641993,111750.0,111740.0,0.00309]
[1756108043250,1.57623301,111750.0,111740.0,0.00535466]
[1756108043683,0.22446312,111750.0,111740.0,0.00535466]
[1756108043891,0.77820059,111750.0,111740.0,0.00535466]
[1756108044109,1.11820059,111750.0,111740.0,0.00535466]
[1756108044325,0.53179469,111750.0,111740.0,0.00535466]
[1756108044547,0.53179469,111750.0,111740.0,0.15272036]
[1756108044548,0.01642567,111750.0,111740.0,0.15272036]
[1756108044768,0.76075157,111750.0,111740.0,0.15572036]
[1756108044990,0.17434567,111750.0,111740.0,0.09723941]
[1756108045200,0.76075157,111750.0,111740.0,0.15777036]
[1756108046076,0.77820059,111750.0,111740.0,0.09728941]
[1756108046290,0.77820059,111750.0,111740.0,0.01040466]
[1756108046291,1.56844404,111750.0,111740.0,0.01040466]
[1756108046506,1.90844404,111750.0,111740.0,0.01040466]
[1756108047399,0.55666133,111750.0,111740.0,0.01040466]
[1756108047619,0.37391923,111750.0,111740.0,0.01040466]
[1756108047835,0.94287611,111750.0,111740.0,0.15777036]
[1756108048053,0.76079611,111750.0,111740.0,0.15777036]
[1756108048271,0.60287611,111750.0,111740.0,0.15777036]
[1756108048493,0.17439021,111750.0,111740.0,0.15777036]
[1756108048959,0.01647021,111750.0,111740.0,0.1735474]
[1756108049167,0.01647021,111750.0,111740.0,0.16000769]
[1756108049407,0.01647021,111750.0,111740.0,0.15577036]
[1756108049618,0.01647021,111750.0,111740.0,0.15877036]
[1756108050048,0.60287611,111750.0,111740.0,0.15877036]
[1756108051163,0.60287611,111750.0,111740.0,0.15277036]
[1756108051410,0.63543609,111750.0,111740.0,0.15977036]
[1756108051848,0.60287611,111750.0,111740.0,0.15577036]
[1756108052099,0.60287611,111750.0,111740.0,0.15477036]
[1756108052339,0.60287611,111750.0,111740.0,0.09628941]
[1756108052573,1.88855194,111750.0,111740.0,0.00424466]
[1756108052789,1.88858446,111750.0,111740.0,0.00424466]
[1756108053018,1.97545411,111750.0,111740.0,0.00424466]
[1756108053722,1.97545609,111750.0,111740.0,0.00424466]
[1756108054171,1.97545609,111750.0,111740.0,0.00224466]
[1756108054385,2.06234084,111750.0,111740.0,0.00224466]
[1756108054593,2.06234084,111750.0,111740.0,0.00424466]
[1756108054594,2.10805012,111750.0,111740.0,0.00424466]
[1756108054811,2.12205459,111750.0,111740.0,0.00024466]
[1756108055035,2.12205459,111750.0,111740.0,0.00124466]
[1756108055293,1.96413459,111750.0,111740.0,0.00124466]
[1756108055520,2.12205459,111750.0,111740.0,0.00124466]
[1756108055738,2.12305459,111750.0,111740.0,0.00024466]
[1756108055955,0.53645197,111730.0,111720.0,5e-05]
[1756108056171,2.15638949,111730.0,111720.0,0.00019423]
[1756108056377,2.18452814,111730.0,111720.0,0.00019423]
[1756108056626,2.18452814,111730.0,111710.0,5e-05]
[1756108056627,1.74879884,111720.0,111710.0,5e-05]
[1756108056827,1.93148088,111720.0,111710.0,5e-05]
[1756108057058,1.9630618,111720.0,111710.0,5e-05]
[1756108057682,1.98208044,111720.0,111710.0,5e-05]
[1756108058098,1.98508044,111720.0,111710.0,5e-05]
[1756108059835,1.74881487,111710.0,111700.0,5e-05]
[1756108060055,2.17122857,111710.0,111700.0,5e-05]
[1756108060316,1.74883089,111700.0,111690.0,5e-05]
[1756108060509,1.94837994,111700.0,111690.0,5e-05]
[1756108060723,2.14008459,111700.0,111690.0,5e-05]
[1756108061587,2.18046344,111700.0,111690.0,5e-05]
[1756108061804,2.02254344,111700.0,111690.0,5e-05]
[1756108062019,2.17286075,111700.0,111690.0,0.00497]
[1756108062242,2.01494075,111700.0,111690.0,0.00497]
[1756108062462,2.16878663,111700.0,111690.0,5e-05]
[1756108062670,2.17197663,111700.0,111690.0,5e-05]
[1756108063134,2.16878663,111700.0,111690.0,0.00202]
[1756108063137,1.82970561,111700.0,111690.0,0.00202]
[1756108063382,1.88328685,111700.0,111690.0,0.00497]
[1756108063603,1.72536685,111700.0,111690.0,0.00497]
[1756108063822,1.54328685,111700.0,111690.0,0.00497]
[1756108064045,1.2984972,111700.0,111690.0,0.00497]
[1756108064283,0.88746032,111700.0,111690.0,0.00497]
[1756108064511,0.88746032,111700.0,111690.0,0.1523357]
[1756108064512,0.60291245,111700.0,111690.0,0.1523357]
[1756108064784,0.76083245,111700.0,111690.0,0.1523357]
[1756108065622,0.75191245,111700.0,111690.0,0.1533357]
[1756108065839,0.59399245,111700.0,111690.0,0.1533357]
[1756108066083,0.00758655,111700.0,111690.0,0.1523357]
[1756108066312,0.00758655,111700.0,111690.0,0.16767427]
[1756108066766,0.7443259,111720.0,111690.0,0.17267427]
[1756108066982,0.15792,111720.0,111710.0,0.06048095]
[1756108067206,0.7443259,111720.0,111710.0,0.1493357]
[1756108067428,0.7443259,111720.0,111710.0,0.1522857]
[1756108067652,0.54851846,111720.0,111710.0,0.1679619]
[1756108068107,0.15792,111720.0,111710.0,0.1679619]
[1756108068296,0.7443259,111720.0,111710.0,0.1522857]
[1756108069064,1.28290389,111720.0,111690.0,0.06948095]
[1756108069281,1.60136245,111700.0,111690.0,0.00605]
[1756108069489,2.02731312,111700.0,111690.0,0.00605]
[1756108069690,2.03050312,111700.0,111690.0,5e-05]
[1756108069893,0.53651608,111690.0,111670.0,0.05837211]
[1756108070102,0.7443259,111680.0,111670.0,0.14394931]
[1756108070301,0.7443259,111680.0,111670.0,0.14591931]
[1756108070986,0.5864059,111680.0,111670.0,0.14591931]
[1756108071199,0.58654969,111680.0,111670.0,0.14591931]
[1756108071412,0.00014379,111680.0,111670.0,0.14591931]
[1756108071825,0.58654969,111680.0,111670.0,0.14796931]
[1756108072034,0.58654969,111680.0,111670.0,0.15091931]
[1756108072234,0.00014379,111680.0,111670.0,0.15291931]
[1756108072639,0.00014379,111680.0,111670.0,0.15091931]
[1756108072842,0.00014379,111680.0,111670.0,0.17046403]
[1756108073012,0.00014379,111680.0,111670.0,0.17446403]
[1756108074014,0.58654969,111680.0,111670.0,0.17446403]
[1756108074228,0.58654969,111680.0,111670.0,0.14996931]
[1756108074443,0.74442969,111680.0,111670.0,0.15496931]
[1756108075310,0.74442969,111680.0,111670.0,0.14996931]
[1756108075516,0.74442969,111680.0,111670.0,0.14596931]
[1756108075748,0.74442969,111680.0,111670.0,0.15196931]
[1756108076600,0.58654969,111680.0,111670.0,0.15491931]
[1756108077038,0.00014379,111680.0,111670.0,0.15491931]
[1756108077478,0.0166673,111680.0,111670.0,0.15491931]
[1756108077678,0.6030732,111680.0,111670.0,0.15491931]
[1756108077892,0.0166673,111680.0,111670.0,0.15491931]
[1756108078125,0.67417483,111680.0,111670.0,0.15196931]
[1756108078603,0.67417483,111680.0,111670.0,0.15491931]
[1756108079240,0.08776893,111680.0,111670.0,0.15491931]
[1756108079451,0.08776893,111680.0,111670.0,0.17064014]
[1756108080346,0.08776893,111680.0,111670.0,0.15491931]
[1756108080791,0.0166673,111680.0,111670.0,0.15939677]
[1756108081009,0.00014379,111680.0,111670.0,0.74580267]
[1756108081231,0.01669224,111680.0,111670.0,0.31275931]
[1756108081478,0.01669224,111680.0,111670.0,0.39962896]
[1756108081697,0.00014379,111680.0,111670.0,0.39962896]
[1756108082120,0.00014379,111680.0,111670.0,0.30675931]
[1756108082364,0.00114379,111680.0,111670.0,0.31779931]
[1756108082619,0.00114379,111680.0,111670.0,0.89820521]
[1756108083107,0.00114379,111680.0,111670.0,1.34620521]
[1756108083357,0.00114379,111680.0,111670.0,1.34616521]
[1756108083634,0.00114379,111680.0,111670.0,1.27519486]
[1756108083886,0.00014379,111680.0,111670.0,1.42803486]
[1756108084125,0.00014379,111680.0,111670.0,1.27019486]
[1756108084338,0.00014379,111680.0,111670.0,1.42803486]
[1756108084772,0.00014379,111680.0,111670.0,1.29164388]
[1756108084992,0.00014379,111680.0,111670.0,1.44148388]
[1756108085218,0.00014379,111680.0,111670.0,0.85107798]
[1756108085438,0.00014379,111680.0,111670.0,0.85807798]
[1756108085656,0.00014379,111680.0,111670.0,1.45048388]
[1756108085878,0.00014379,111680.0,111670.0,0.58878896]
[1756108086170,0.00014379,111680.0,111670.0,0.91546896]
[1756108086825,0.00014379,111680.0,111670.0,0.90246896]
[1756108087258,0.00114379,111680.0,111670.0,0.90846896]
[1756108087707,0.00014379,111680.0,111670.0,0.90246896]
[1756108087948,0.00014379,111680.0,111670.0,1.48887486]
[1756108088158,0.00114379,111680.0,111670.0,1.49487486]
[1756108088386,0.00114379,111680.0,111670.0,0.80842896]
[1756108088608,0.00114379,111680.0,111670.0,1.49483486]
[1756108089291,0.00114379,111680.0,111670.0,1.50373691]
[1756108092131,0.00114379,111680.0,111670.0,1.52118593]
[1756108092350,0.00114379,111680.0,111670.0,1.52776593]
[1756108092595,0.00114379,111680.0,111670.0,1.36996593]
[1756108092810,0.00114379,111680.0,111670.0,1.62772593]
[1756108093682,0.00014379,111680.0,111670.0,1.62172593]
[1756108094143,0.00114379,111680.0,111670.0,1.62872593]
[1756108094365,0.00114379,111680.0,111670.0,1.04232003]
[1756108094578,0.00014379,111680.0,111670.0,1.46396593]
[1756108094798,0.00114379,111680.0,111670.0,1.62972593]
[1756108095471,0.00114379,111680.0,111670.0,1.63572593]
[1756108095968,0.00114379,111680.0,111670.0,1.67612807]
[1756108096606,0.00114379,111680.0,111670.0,1.77048807]
[1756108097065,0.00114379,111680.0,111670.0,1.61272807]
[1756108097287,0.00114379,111680.0,111670.0,1.77608807]
[1756108097739,0.00114379,111680.0,111670.0,1.61836807]
[1756108097955,0.00114379,111680.0,111670.0,1.77608807]
[1756108098385,0.00114379,111680.0,111670.0,1.61836807]
[1756108098609,0.00114379,111680.0,111670.0,0.81977003]
[1756108098813,0.00114379,111680.0,111670.0,0.91086798]
[1756108099036,0.00114379,111680.0,111670.0,1.11997896]
[1756108099255,0.00114379,111680.0,111670.0,1.70932486]
[1756108099710,0.00114379,111680.0,111670.0,1.76676453]
[1756108099923,0.00114379,111680.0,111670.0,1.86676453]
[1756108100816,0.00114379,111680.0,111670.0,1.8759705]
[1756108101251,0.00114379,111680.0,111670.0,1.8693905]
[1756108101721,0.00114379,111680.0,111670.0,1.7116705]
[1756108101940,0.00114379,111680.0,111670.0,1.8693505]
[1756108102378,0.00114379,111680.0,111670.0,1.8759305]
[1756108103721,0.00114379,111680.0,111670.0,1.36118594]
[1756108103950,0.00114379,111680.0,111670.0,0.8289046]
[1756108104169,0.00311379,111680.0,111670.0,0.66488493]
[1756108104410,0.00311379,111680.0,111670.0,0.91993896]
[1756108104669,0.00633379,111680.0,111670.0,0.81796896]
[1756108104925,0.00633379,111680.0,111670.0,0.66028896]
[1756108105144,0.00633379,111680.0,111670.0,0.69144896]
[1756108105376,0.00633379,111680.0,111670.0,0.91796896]
[1756108106267,0.00533379,111680.0,111670.0,0.90396896]
[1756108106732,0.00533379,111680.0,111670.0,1.49337486]
[1756108106733,0.00114379,111680.0,111670.0,1.49337486]
[1756108106951,0.00114379,111680.0,111670.0,1.51376388]
[1756108107205,0.00114379,111680.0,111670.0,1.61376388]
[1756108107459,0.07110163,111710.0,111700.0,0.05706456]
[1756108107685,0.07307163,111710.0,111700.0,0.37613577]
[1756108107910,0.07110163,111710.0,111700.0,1.41112167]
[1756108108132,0.00322,111730.0,111720.0,0.05706456]
[1756108108359,0.00519,111730.0,111720.0,0.30158931]
[1756108108597,0.00519,111730.0,111720.0,0.34505146]
[1756108109929,0.07446638,111740.0,111730.0,0.05706456]
[1756108110181,0.07124638,111740.0,111730.0,0.80119521]
[1756108110878,0.07124638,111740.0,111730.0,0.21478931]
[1756108111136,0.00014475,111740.0,111730.0,0.80777521]
[1756108111358,0.00014475,111740.0,111730.0,0.89464486]
[1756108112041,0.00014475,111740.0,111730.0,0.90370608]
[1756108112270,0.00014475,111740.0,111730.0,0.31730018]
[1756108112932,0.00014475,111740.0,111730.0,0.32030018]
[1756108113152,0.00014475,111740.0,111730.0,0.32230018]
[1756108113368,0.00014475,111740.0,111730.0,0.31323896]
[1756108113633,0.00533475,111740.0,111730.0,0.46887896]
[1756108113846,0.00533475,111740.0,111730.0,0.31123896]
[1756108114084,0.59174065,111740.0,111730.0,0.46887896]
[1756108114313,0.59174065,111740.0,111730.0,0.31123896]
[1756108114511,0.59174065,111740.0,111730.0,0.37996931]
[1756108114723,0.59174065,111740.0,111730.0,0.37896931]
[1756108114724,0.00211475,111740.0,111730.0,0.37896931]
[1756108114950,0.00014475,111740.0,111730.0,0.37996931]
[1756108115172,0.00014475,111740.0,111730.0,0.38096931]
[1756108115388,0.00533475,111740.0,111730.0,0.22136931]
[1756108115604,0.59174065,111740.0,111730.0,0.25350624]
[1756108116057,0.59174065,111740.0,111730.0,0.37038931]
[1756108116746,0.59174065,111740.0,111730.0,0.14394931]
[1756108116989,0.59174065,111740.0,111730.0,0.30154931]
[1756108116990,0.00533475,111740.0,111730.0,0.30154931]
[1756108117207,0.59174065,111740.0,111730.0,0.30154931]
[1756108117853,0.00533475,111740.0,111730.0,0.30154931]
[1756108118104,0.00014475,111740.0,111730.0,0.34058824]
[1756108118345,0.00014475,111740.0,111730.0,0.18298824]
[1756108118581,0.59174065,111740.0,111730.0,0.33854824]
[1756108118800,0.00533475,111740.0,111730.0,0.33854824]
[1756108119018,0.59174065,111740.0,111730.0,0.33854824]
[1756108119445,0.59174065,111740.0,111730.0,0.14394931]
[1756108119671,0.59174065,111740.0,111730.0,0.30150931]
[1756108120627,0.59274065,111740.0,111730.0,0.30150931]
[1756108121423,0.59374065,111740.0,111730.0,0.30150931]
[1756108122375,0.00411475,111740.0,111730.0,0.30150931]
[1756108122604,0.00411475,111740.0,111730.0,0.33854424]
[1756108122840,0.00714475,111740.0,111730.0,0.33854424]
[1756108123070,0.59355065,111740.0,111730.0,0.33854424]
[1756108123504,0.00714475,111740.0,111730.0,0.33854424]
[1756108123721,0.59355065,111740.0,111730.0,0.33854424]
[1756108124361,0.00714475,111740.0,111730.0,0.33854424]
[1756108124586,0.00714475,111740.0,111730.0,0.18098424]
[1756108124587,0.59355065,111740.0,111730.0,0.18098424]
[1756108124809,0.59355065,111740.0,111730.0,0.28147968]
[1756108124995,0.00411475,111740.0,111730.0,0.34062424]
[1756108125253,0.00424475,111740.0,111730.0,0.18098424]
[1756108125462,0.00424475,111740.0,111730.0,0.33850424]
[1756108125463,0.59368065,111740.0,111730.0,0.33850424]
[1756108125681,0.00727475,111740.0,111730.0,0.33850424]
[1756108125891,0.59368065,111740.0,111730.0,0.33850424]
[1756108126348,0.00727475,111740.0,111730.0,0.33850424]
[1756108126564,0.00214475,111740.0,111730.0,0.34058424]
[1756108129737,0.00214475,111740.0,111730.0,0.34361424]
[1756108129953,0.00214475,111740.0,111730.0,0.18609424]
[1756108130178,0.00214475,111740.0,111730.0,0.34361424]
[1756108130395,0.00214475,111740.0,111730.0,0.34058424]
[1756108130611,0.00114475,111740.0,111730.0,0.34361424]
[1756108131051,0.00114475,111740.0,111730.0,0.18609424]
[1756108131263,0.00114475,111740.0,111730.0,0.34361424]
[1756108131494,0.00627475,111740.0,111730.0,0.18098424]
[1756108131720,0.00224475,111740.0,111730.0,0.28143968]
[1756108131938,0.00014475,111740.0,111730.0,0.34058424]
[1756108132824,0.00014475,111740.0,111730.0,0.34158424]
[1756108133239,0.00014475,111740.0,111730.0,0.34258424]
[1756108134293,0.00014475,111740.0,111730.0,0.34254424]
[1756108135340,0.00224475,111740.0,111730.0,0.18298424]
[1756108135553,0.00527475,111740.0,111730.0,0.34046424]
[1756108135756,0.00224475,111740.0,111730.0,0.34254424]
[1756108135965,0.57973065,111740.0,111730.0,0.18506424]
[1756108136181,0.00513,111740.0,111730.0,0.18298424]
[1756108136396,0.5915359,111740.0,111730.0,0.34046424]
[1756108136611,0.5915359,111740.0,111730.0,0.18298424]
[1756108136827,0.5915359,111740.0,111730.0,0.34046424]
[1756108137249,0.5915359,111740.0,111730.0,0.18298424]
[1756108137463,0.5915359,111740.0,111730.0,0.34046424]
[1756108137677,0.0021,111740.0,111730.0,0.34254424]
[1756108137888,0.5915359,111740.0,111730.0,0.18298424]
[1756108138102,0.5915359,111740.0,111730.0,0.12591968]
[1756108138313,0.5915359,111740.0,111730.0,0.14594931]
[1756108138541,0.5915359,111740.0,111730.0,0.30342931]
[1756108139319,0.5915359,111740.0,111730.0,0.30338931]
[1756108139477,0.5915359,111740.0,111730.0,0.30138931]
[1756108139712,0.5935359,111740.0,111730.0,0.30138931]
[1756108140545,0.0041,111740.0,111730.0,0.33360824]
[1756108140757,0.002,111740.0,111730.0,0.33663824]
[1756108142061,0.5864059,111750.0,111730.0,0.33668824]
[1756108142269,0.5894359,111750.0,111740.0,0.08688475]
[1756108142483,0.5915359,111750.0,111740.0,0.30138931]
[1756108142689,0.5915359,111750.0,111740.0,0.27748257]
[1756108142901,0.5915359,111750.0,111740.0,0.33454713]
[1756108143116,0.5915359,111750.0,111740.0,0.27748257]
[1756108143369,1.1789418,111750.0,111740.0,0.14394931]
[1756108143743,0.5935359,111750.0,111740.0,0.14394931]
[1756108144823,0.5925359,111750.0,111740.0,0.14394931]
[1756108145246,0.5935359,111750.0,111740.0,0.14399931]
[1756108145679,0.5935359,111750.0,111740.0,0.30143931]
[1756108146507,0.5935359,111750.0,111740.0,0.14399931]
[1756108148390,0.00713,111750.0,111740.0,0.17414824]
[1756108148626,0.5935359,111750.0,111740.0,0.17414824]
[1756108148834,0.00713,111750.0,111740.0,0.14399931]
[1756108149039,0.5935359,111750.0,111740.0,0.14399931]
[1756108149483,0.5935359,111750.0,111740.0,0.30367664]
[1756108149722,0.5905059,111750.0,111740.0,0.30351931]
[1756108149948,0.5905059,111750.0,111740.0,0.33387624]
[1756108150373,0.5936459,111750.0,111740.0,0.33175624]
[1756108150801,0.5936459,111750.0,111740.0,0.17435624]
[1756108151014,0.5884059,111750.0,111740.0,0.30650931]
[1756108151235,0.5884059,111750.0,111740.0,0.14910931]
[1756108151442,0.5884059,111750.0,111740.0,0.30650931]
[1756108151443,0.002,111750.0,111740.0,0.30650931]
[1756108151657,0.5904359,111750.0,111740.0,0.30347931]
[1756108151866,0.5935759,111750.0,111740.0,0.30139931]
[1756108152291,0.5935759,111750.0,111740.0,0.33184724]
[1756108152505,0.5935759,111750.0,111740.0,0.11738268]
[1756108152712,0.6304359,111750.0,111740.0,0.30139931]
[1756108152921,0.6335759,111750.0,111740.0,0.30139931]
[1756108153344,0.6335759,111750.0,111740.0,0.14399931]
[1756108153834,0.04717,111750.0,111740.0,0.30139931]
[1756108154052,0.6335759,111750.0,111740.0,0.30139931]
[1756108154243,0.6335759,111750.0,111740.0,0.33362424]
[1756108155367,0.6304359,111750.0,111740.0,0.33362424]
[1756108156072,0.04403,111750.0,111740.0,0.33362424]
[1756108156288,0.6304359,111750.0,111740.0,0.33362424]
[1756108156710,0.6304359,111750.0,111740.0,0.33154424]
[1756108156933,0.6304359,111750.0,111740.0,0.33362424]
[1756108157751,0.6335759,111750.0,111740.0,0.33154424]
[1756108158755,0.6335759,111750.0,111740.0,0.17414424]
[1756108158953,0.6335759,111750.0,111740.0,0.30139931]
[1756108162251,0.6335759,111750.0,111740.0,0.30347931]
[1756108162455,0.6335759,111750.0,111740.0,0.30139931]
[1756108162894,0.6335759,111750.0,111740.0,0.14399931]
[1756108163123,0.6335759,111750.0,111740.0,0.30139931]
[1756108163337,0.6335759,111750.0,111740.0,0.17444724]
[1756108163553,0.6335759,111750.0,111740.0,0.30139931]
[1756108164011,0.6335759,111750.0,111740.0,0.14399931]
[1756108164190,1.2199818,111750.0,111740.0,0.14399931]
[1756108167147,1.3742018,111750.0,111740.0,0.14607931]
[1756108167585,1.3742018,111750.0,111740.0,0.14399931]
[1756108167800,1.2168418,111750.0,111740.0,0.14399931]
[1756108168014,0.6304359,111750.0,111740.0,0.14607931]
[1756108168234,0.6304359,111750.0,111740.0,0.17652724]
[1756108168462,1.2168418,111750.0,111740.0,0.17652724]
[1756108168683,0.6304359,111750.0,111740.0,0.17652724]
[1756108168935,0.042,111750.0,111740.0,0.17955724]
[1756108169164,0.6284059,111750.0,111740.0,0.17955724]
[1756108170706,0.6304359,111750.0,111740.0,0.17652724]
[1756108171338,0.6284059,111750.0,111740.0,0.17955724]
[1756108171766,1.1779818,111750.0,111740.0,0.17444724]
[1756108171970,1.1779818,111750.0,111740.0,0.08693475]
[1756108172177,1.1779818,111750.0,111740.0,0.14399931]
[1756108173915,1.2048808,111750.0,111740.0,0.14399931]
[1756108174599,0.6184749,111750.0,111740.0,0.17414024]
[1756108175211,0.6184749,111750.0,111740.0,0.14399931]
[1756108176123,1.2048808,111750.0,111740.0,0.14399931]
[1756108176337,0.6184749,111750.0,111740.0,0.14399931]
[1756108177019,0.032069,111750.0,111740.0,0.14607931]
[1756108177234,0.6184749,111750.0,111740.0,0.14607931]
[1756108177451,0.6184749,111750.0,111740.0,0.17434824]
[1756108177683,0.032069,111750.0,111740.0,0.17434824]
[1756108177914,0.6184749,111750.0,111740.0,0.17434824]
[1756108178577,0.6133049,111750.0,111740.0,0.17866557]